bitfinex/quotes_ETHUSD_20241003
["timestamp","ask_amount","ask_price","bid_price","bid_amount"]
[1727960784676,4.24646,2354.9,2354.7,0.7932]
[1727960784860,0.4751854,2354.9,2354.7,0.7932]
[1727960785034,0.008,2354.9,2354.7,0.7932]
[1727960785242,0.008,2354.9,2354.7,5.03991]
[1727960786166,0.008,2354.9,2354.7,9.28664]
[1727960786535,0.008,2354.9,2354.7,0.7932]
[1727960786773,4.2546,2354.9,2354.7,0.7932]
[1727960786977,4.2469,2354.7,2354.2,0.7534]
[1727960787129,4.25515,2354.6,2354.2,5.00109]
[1727960787335,0.008,2354.4,2354.2,5.00109]
[1727960787749,0.008,2354.4,2354.3,4.24754]
[1727960788235,4.99609668,2355.6,2354.5,4.24718]
[1727960788236,0.008,2354.7,2354.5,4.24718]
[1727960788448,0.008,2354.7,2354.4,0.7534]
[1727960788449,0.008,2354.7,2354.4,5.00071]
[1727960788673,0.008,2354.7,2354.4,0.7534]
[1727960788833,4.25493,2354.7,2354.4,0.7534]
[1727960789035,5.105088,2354.7,2354.4,0.7534]
[1727960789363,5.105058,2354.7,2354.4,0.7534]
[1727960789561,4.24702,2354.6,2354.4,0.7534]
[1727960789766,9.352038,2354.7,2354.4,0.7534]
[1727960789959,5.105058,2354.7,2354.4,0.7534]
[1727960790285,9.352018,2354.7,2354.4,0.7534]
[1727960790482,0.5105058,2354.6,2354.4,0.7534]
[1727960791041,4.24718,2354.5,2354.4,0.7534]
[1727960791236,0.5105058,2354.6,2354.1,5.06069]
[1727960791237,4.7575258,2354.6,2354.1,5.06069]
[1727960791787,0.008,2354.4,2354.2,0.07635016]
[1727960792990,0.008,2354.4,2354.3,4.24754]
[1727960793361,0.008,2354.4,2354.3,4.32391009]
[1727960793960,0.008,2354.4,2354.3,0.07637009]
[1727960794288,4.25536,2354.4,2354.1,0.8129]
[1727960794495,5.105597,2354.4,2354.3,0.07637009]
[1727960794793,5.105597,2354.4,2353.9,0.8866587]
[1727960794794,4.24808,2354.0,2353.9,0.8866587]
[1727960794941,4.24808,2354.0,2353.9,0.1159587]
[1727960795143,4.25608,2354.0,2353.9,0.1159587]
[1727960795345,5.106478,2354.0,2353.9,0.1159587]
[1727960795785,8.106478,2354.0,2353.9,0.1159587]
[1727960796293,8.656478,2354.0,2353.9,0.1159587]
[1727960796595,9.361878,2354.0,2353.9,0.1159587]
[1727960798597,8.811878,2354.0,2353.9,0.1159587]
[1727960800747,9.361878,2354.0,2353.9,0.1159587]
[1727960801521,4.24971,2353.1,2353.0,0.802]
[1727960801719,4.25771,2353.1,2353.0,0.802]
[1727960802028,7.25771,2353.1,2353.0,0.802]
[1727960802583,7.25771,2353.1,2353.0,0.86937315]
[1727960802584,0.008,2353.1,2353.0,0.86937315]
[1727960802785,0.008,2353.1,2353.0,5.11926315]
[1727960803027,0.008,2353.2,2353.0,5.63118946]
[1727960803189,0.008,2353.2,2353.0,1.38129946]
[1727960803382,0.008,2353.2,2353.0,0.86937315]
[1727960803788,0.008,2353.2,2353.1,4.24971]
[1727960804032,4.257,2353.5,2353.1,0.06764692]
[1727960804388,0.008,2353.5,2353.2,4.24945]
[1727960804633,0.008,2353.5,2353.1,4.24962]
[1727960804794,4.25707,2353.5,2353.3,0.06764692]
[1727960804994,4.25707,2353.5,2353.0,5.0518]
[1727960805222,0.008,2353.2,2353.1,0.06764692]
[1727960808689,0.008,2353.2,2353.1,4.31735692]
[1727960809337,0.008,2353.2,2353.1,0.06764692]
[1727960810642,4.683274,2353.2,2353.1,0.06764692]
[1727960812443,4.683274,2353.2,2352.6,4.25049]
[1727960812444,4.24986,2353.1,2352.6,4.25049]
[1727960812772,0.433744,2353.2,2352.6,4.25049]
[1727960812773,0.008,2352.7,2352.6,4.25049]
[1727960813133,0.008,2352.7,2352.6,0.06545885]
[1727960813340,0.008,2352.7,2352.6,4.31606885]
[1727960816045,0.008,2352.8,2352.7,4.25043]
[1727960816733,0.008,2352.8,2352.7,4.31588885]
[1727960816933,0.008,2352.8,2352.7,0.06545885]
[1727960817360,0.008,2352.8,2352.6,4.25058]
[1727960817672,0.008,2352.8,2352.7,0.06545885]
[1727960817879,0.008,2352.8,2352.6,4.25054]
[1727960818080,0.008,2352.8,2352.7,0.06545885]
[1727960819745,0.008,2352.8,2352.7,4.31588885]
[1727960823886,1.35836367,2353.0,2352.6,4.25052]
[1727960824051,4.25011,2352.9,2352.4,4.2509]
[1727960824252,8.5003,2352.9,2352.2,4.25121]
[1727960824455,4.25826,2352.8,2351.8,4.80194]
[1727960824815,0.008,2352.6,2352.2,4.25124]
[1727960824972,0.008,2352.6,2352.3,4.25108]
[1727960826026,0.008,2352.6,2352.2,4.25124]
[1727960826219,0.008,2352.6,2352.2,4.25123]
[1727960826398,0.008,2352.6,2352.4,4.25095]
[1727960826595,0.008,2352.6,2352.2,4.25129]
[1727960827026,5.109548,2352.6,2352.1,4.25137]
[1727960827222,4.25107,2352.4,2351.9,8.50349]
[1727960827443,0.008,2352.3,2351.9,4.25174]
[1727960827609,0.008,2352.3,2351.6,0.1159587]
[1727960827942,0.008,2352.1,2351.6,0.1159587]
[1727960828111,0.56176957,2352.3,2351.7,0.05959016]
[1727960828112,4.25215,2351.8,2351.7,0.05959016]
[1727960828510,4.25224,2351.7,2351.6,0.1159587]
[1727960828716,8.32874042,2351.8,2351.7,0.05959016]
[1727960828717,0.008,2351.8,2351.7,0.05959016]
[1727960828900,4.26006,2351.8,2351.6,0.17356252]
[1727960829091,4.26006,2351.8,2351.6,0.1159587]
[1727960829405,5.110938,2351.8,2351.6,0.1159587]
[1727960830156,0.008,2351.8,2351.7,4.25224]
[1727960830438,0.008,2352.3,2352.1,4.25144]
[1727960830591,0.008,2352.3,2352.2,4.25133]
[1727960831007,0.008,2352.6,2352.5,4.25079]
[1727960831221,0.008,2352.7,2352.6,7.80061]
[1727960831460,0.008,2353.5,2353.4,4.24917]
[1727960831810,0.008,2353.5,2353.3,4.24932]
[1727960831811,0.008,2353.5,2353.3,4.24925]
[1727960832362,0.008,2353.5,2353.1,4.24958]
[1727960833055,0.008,2353.5,2352.6,3.0]
[1727960833412,4.24928,2353.4,2352.8,4.25012]
[1727960833620,0.008,2353.0,2352.7,4.25042]
[1727960833965,0.008,2352.8,2352.5,4.25075]
[1727960834165,0.008,2352.6,2352.4,7.25093]
[1727960834627,0.008,2352.6,2352.4,4.25093]
[1727960835260,0.008,2352.6,2352.3,4.25101]
[1727960835466,0.008,2352.6,2352.4,4.25096]
[1727960835666,0.008,2352.6,2352.3,4.25101]
[1727960836092,0.008,2352.6,2352.3,8.50208]
[1727960836282,0.008,2352.6,2352.5,4.25079]
[1727960836834,0.008,2352.8,2352.6,4.25044]
[1727960837070,0.008,2352.8,2352.7,4.25043]
[1727960837556,0.008,2353.0,2352.3,5.76513924]
[1727960837758,4.25825,2352.8,2352.4,4.25097]
[1727960837965,4.25825,2352.8,2351.9,4.25176]
[1727960837966,0.008,2352.5,2352.1,4.25139]
[1727960838145,0.008,2352.3,2351.6,0.1159587]
[1727960838351,0.008,2352.5,2352.3,4.25108]
[1727960838635,4.25029,2352.8,2352.3,4.25108]
[1727960839037,7.39,2352.9,2351.6,0.7716107]
[1727960839236,0.008,2352.5,2352.3,4.251]
[1727960839478,0.008,2352.5,2352.1,4.25137]
[1727960839635,0.008,2352.5,2352.3,4.25112]
[1727960840252,0.008,2352.5,2352.2,4.25122]
[1727960840436,0.008,2352.5,2352.1,3.0]
[1727960840886,0.008,2352.5,2352.2,4.25125]
[1727960841043,0.008,2352.5,2352.2,8.5025]
[1727960841374,0.008,2352.5,2352.1,4.25134]
[1727960841579,0.008,2352.5,2352.3,4.25105]
[1727960841734,0.008,2352.5,2352.3,8.50211]
[1727960841935,0.008,2352.5,2352.4,4.25097]
[1727960842417,0.008,2352.8,2352.7,4.25043]
[1727960842739,4.24945,2353.3,2352.7,4.25043]
[1727960842740,0.008,2353.0,2352.7,4.25043]
[1727960842942,4.24956,2353.2,2352.8,4.25025]
[1727960843139,0.35106676,2353.1,2352.8,4.25025]
[1727960843345,4.24944,2353.3,2352.9,0.05744482]
[1727960843540,0.35108022,2353.2,2352.8,4.25013]
[1727960843739,4.24944,2353.3,2353.0,0.05744482]
[1727960843939,4.24944,2353.3,2352.8,4.25013]
[1727960844157,4.24944,2353.3,2353.1,0.05744482]
[1727960844360,4.24944,2353.3,2352.8,4.25013]
[1727960844361,0.35110256,2353.2,2352.8,4.25013]
[1727960844566,0.35110256,2353.2,2352.9,0.05744482]
[1727960844780,4.24944,2353.3,2352.9,0.05744482]
[1727960844967,0.35128789,2353.2,2352.9,0.05744482]
[1727960845142,4.24968,2353.2,2352.9,0.05744482]
[1727960845338,4.60115102,2353.1,2352.5,4.25067]
[1727960845568,0.008,2352.6,2352.5,4.25067]
[1727960846686,0.008,2353.0,2352.7,4.25042]
[1727960846886,4.25799,2353.0,2352.5,4.25067]
[1727960847111,0.008,2352.8,2352.5,4.25067]
[1727960847861,0.008,2352.8,2352.4,3.0]
[1727960848107,0.008,2352.8,2352.7,4.25043]
[1727960848287,0.008,2353.0,2352.7,4.25043]
[1727960848460,0.008,2352.8,2352.7,4.25043]
[1727960848966,0.008,2353.0,2352.9,4.25007]
[1727960849219,0.87395777,2353.4,2353.3,4.24935]
[1727960849518,0.44362248,2353.6,2353.2,4.24939]
[1727960849659,0.44362248,2353.6,2352.7,3.0]
[1727960849660,4.24891,2353.6,2353.0,4.24979]
[1727960849863,4.25707,2353.5,2353.0,4.24976]
[1727960850063,0.008,2353.2,2353.0,4.24976]
[1727960850493,0.008,2353.2,2353.0,4.24979]
[1727960850703,0.008,2353.3,2353.0,4.24979]
[1727960851524,0.008,2353.3,2353.1,4.24962]
[1727960851811,0.008,2353.3,2353.0,4.24979]
[1727960851972,0.008,2353.3,2353.1,4.24963]
[1727960852878,0.008,2353.3,2353.2,4.24953]
[1727960853092,0.008,2353.3,2353.1,4.24963]
[1727960853421,0.433691,2353.5,2353.2,4.24953]
[1727960853570,0.008,2353.3,2353.1,4.24961]
[1727960853764,0.433691,2353.5,2353.1,8.49923]
[1727960854121,0.433691,2353.5,2353.2,4.24952]
[1727960854322,0.008,2353.3,2353.2,4.24952]
[1727960855604,0.35127951,2353.4,2353.3,7.24935]
[1727960855907,0.35127951,2353.4,2353.3,7.85502248]
[1727960856069,0.35127951,2353.4,2353.3,8.40501233]
[1727960856425,0.44354658,2354.5,2354.4,4.24736]
[1727960856829,0.008,2354.7,2354.5,4.247]
[1727960857112,6.00490395,2355.1,2354.9,4.24642]
[1727960857113,0.008,2355.1,2354.9,4.24642]
[1727960857263,0.008,2355.3,2355.1,4.24593]
[1727960857469,0.008,2355.3,2354.8,0.08492109]
[1727960857470,0.008,2355.3,2354.8,4.24654]
[1727960857670,4.95923,2355.3,2354.6,3.0]
[1727960857989,0.7054,2354.9,2354.5,4.24717]
[1727960858194,0.008,2354.7,2354.5,4.24717]
[1727960858500,0.7054,2354.9,2354.6,4.247]
[1727960858501,0.008,2354.8,2354.6,4.247]
[1727960858689,0.008,2354.8,2354.4,4.24723]
[1727960858883,0.008,2354.8,2354.5,4.2471]
[1727960859086,0.7054,2354.9,2354.5,4.2471]
[1727960859413,0.7054,2354.9,2354.4,4.24723]
[1727960859414,0.008,2354.8,2354.6,4.24698]
[1727960859619,0.008,2354.8,2354.6,8.49389]
[1727960859831,0.008,2354.8,2354.4,4.24728]
[1727960860127,0.008,2354.8,2354.6,4.24699]
[1727960860272,0.008,2354.8,2354.6,4.24692]
[1727960860473,0.7054,2354.9,2354.8,4.24664]
[1727960861123,7.39,2355.5,2355.0,4.2462]
[1727960861124,0.7054,2355.2,2355.0,4.2462]
[1727960861281,0.7054,2355.2,2355.1,4.2461]
[1727960861477,0.008,2355.2,2355.1,4.2461]
[1727960861682,0.008,2355.6,2355.5,4.24538]
[1727960861921,1.0,2355.9,2355.7,4.24491]
[1727960862296,0.008,2355.8,2355.7,4.24491]
[1727960862634,0.008,2355.8,2355.6,4.24517]
[1727960862922,0.008,2355.8,2355.7,4.24502]
[1727960863228,0.008,2355.8,2355.6,4.2451]
[1727960863723,0.008,2355.8,2355.4,4.24541]
[1727960864078,0.7054,2355.7,2355.4,4.24541]
[1727960864281,0.008,2355.5,2355.4,4.24541]
[1727960864902,0.008,2355.5,2355.3,4.24571]
[1727960865289,0.008,2355.5,2355.1,4.24601]
[1727960865532,0.008,2355.3,2354.8,4.24652]
[1727960865820,0.008,2354.9,2354.7,0.77]
[1727960866119,0.008,2354.9,2354.8,4.24664]
[1727960866827,0.008,2354.9,2354.8,7.24664]
[1727960867134,0.008,2355.1,2355.0,4.24628]
[1727960867287,0.7054,2355.5,2355.2,4.24592]
[1727960867625,0.008,2355.3,2355.2,4.24592]
[1727960868119,0.008,2355.3,2355.1,4.24606]
[1727960868512,0.008,2355.3,2355.2,4.24592]
[1727960868691,0.008,2355.3,2355.1,4.24606]
[1727960869026,0.008,2355.3,2355.2,4.24592]
[1727960869219,0.7054,2355.5,2355.1,4.24609]
[1727960869384,0.008,2355.3,2355.2,4.24592]
[1727960870309,0.008,2355.3,2355.1,4.24609]
[1727960870513,0.7054,2355.2,2354.8,7.24656]
[1727960870810,0.008,2355.0,2354.8,7.24656]
[1727960871007,0.008,2355.0,2354.1,4.24781]
[1727960871307,0.008,2354.6,2354.4,4.24723]
[1727960871512,0.008,2354.6,2354.5,4.24718]
[1727960871823,0.008,2354.6,2354.4,4.24734]
[1727960872118,0.008,2354.6,2354.4,8.49461]
[1727960872320,0.008,2354.6,2354.4,8.49455]
[1727960872520,0.008,2354.6,2354.4,4.24727]
[1727960872952,0.008,2354.6,2354.4,8.49455]
[1727960873132,0.008,2354.6,2354.5,0.04792559]
[1727960873318,0.008,2354.6,2354.5,4.29510559]
[1727960874055,0.008,2354.6,2354.5,0.04792559]
[1727960874206,4.255,2354.6,2354.5,0.04792559]
[1727960874405,4.2472,2354.5,2354.2,0.7882]
[1727960874706,0.008,2354.3,2354.2,0.7882]
[1727960877546,0.008,2354.3,2354.2,5.03592]
[1727960878453,4.25503,2354.6,2354.2,5.03592]
[1727960878633,0.008,2354.4,2354.2,5.03592]
[1727960879039,0.008,2354.4,2354.3,4.24754]
[1727960879207,0.008,2354.4,2354.2,5.03583]
[1727960879403,0.008,2354.4,2354.2,9.28346]
[1727960879642,0.008,2354.4,2354.3,4.24754]
[1727960880167,0.008,2354.4,2354.2,9.28346]
[1727960880367,0.008,2354.4,2354.3,4.24754]
[1727960880570,0.008,2354.4,2354.2,0.7882]
[1727960880892,0.433519,2354.4,2353.2,0.849918]
[1727960881171,0.433519,2354.4,2352.8,6.59629]
[1727960881172,7.39,2354.4,2354.0,4.24796]
[1727960881418,0.008,2354.1,2354.0,4.24808]
[1727960881741,0.008,2354.1,2353.8,4.24844]
[1727960882059,0.008,2353.9,2353.6,4.24869]
[1727960882223,0.008,2353.7,2353.4,7.24902]
[1727960882428,0.008,2353.7,2353.5,4.24887]
[1727960882731,0.008,2353.7,2353.6,4.24881]
[1727960883170,0.008,2353.7,2353.5,4.24887]
[1727960883171,0.008,2354.1,2353.7,4.24862]
[1727960883372,0.008,2353.9,2353.7,4.24862]
[1727960883673,0.008,2353.9,2353.8,4.24834]
[1727960884508,0.008,2353.9,2353.6,4.24872]
[1727960884807,4.24847,2353.8,2353.4,4.24912]
[1727960885112,4.25699,2353.5,2353.0,4.24973]
[1727960885291,0.008,2353.1,2352.9,4.25003]
[1727960885658,0.008,2353.1,2352.9,4.24996]
[1727960885905,0.008,2353.1,2353.0,4.24989]
[1727960886263,0.008,2353.3,2353.2,4.24953]
[1727960886607,0.008,2353.4,2353.3,4.24929]
[1727960886965,0.008,2353.6,2353.4,4.24916]
[1727960887165,0.008,2353.6,2353.3,4.24927]
[1727960887365,0.008,2353.4,2353.3,4.24927]
[1727960888195,4.24834,2353.9,2353.5,4.24899]
[1727960888196,0.008,2353.6,2353.5,4.24899]
[1727960888401,0.008,2353.6,2353.3,4.29514971]
[1727960888599,0.008,2353.4,2353.3,4.2493]
[1727960890016,0.008,2353.4,2353.1,3.0]
[1727960890309,0.008,2353.4,2353.2,4.24944]
[1727960890609,0.008,2353.4,2353.3,4.24935]
[1727960891368,0.008,2353.6,2353.5,4.24899]
[1727960891572,0.008,2353.9,2353.7,4.24854]
[1727960892228,0.008,2353.9,2353.7,8.49703]
[1727960892406,0.008,2353.9,2353.7,4.24849]
[1727960892877,0.008,2353.9,2353.7,8.49697]
[1727960893375,0.008,2353.9,2353.7,4.24848]
[1727960893971,0.008,2353.9,2353.5,4.24886]
[1727960894179,0.008,2353.9,2353.6,4.24879]
[1727960894405,0.008,2353.9,2353.7,4.24859]
[1727960894921,0.008,2353.9,2353.6,4.24879]
[1727960895671,5.098684,2353.9,2353.4,4.24909]
[1727960895886,4.24828,2353.9,2353.4,4.24905]
[1727960896086,3.0,2354.3,2353.6,4.24868]
[1727960896309,4.24815,2354.0,2353.6,4.24868]
[1727960896532,7.39,2354.4,2353.9,4.2481]
[1727960896720,11.63744,2354.4,2354.0,4.24807]
[1727960897079,15.88496,2354.4,2354.1,0.04448662]
[1727960897279,4.24755,2354.3,2354.1,0.04448662]
[1727960897508,4.24755,2354.3,2353.8,4.24842]
[1727960897824,4.24774,2354.2,2353.8,4.24842]
[1727960897979,0.008,2354.0,2353.8,8.49678]
[1727960898178,0.008,2354.0,2353.8,4.24836]
[1727960898632,0.008,2354.0,2353.8,8.49665]
[1727960899127,0.008,2354.0,2353.8,4.24829]
[1727960899821,0.008,2354.0,2353.8,4.24844]
[1727960900033,0.008,2354.0,2353.9,4.24826]
[1727960900642,0.008,2354.0,2353.7,4.24848]
[1727960900843,0.008,2354.0,2353.1,3.0]
[1727960901145,0.008,2354.0,2353.2,4.24949]
[1727960901146,4.24892,2353.6,2353.2,4.24949]
[1727960901297,0.008,2353.3,2353.2,4.24949]
[1727960901696,0.008,2353.3,2352.8,2.3462]
[1727960901897,0.008,2352.9,2352.8,2.3462]
[1727960902092,4.25807,2352.9,2352.8,2.3462]
[1727960902914,7.25807,2352.9,2352.8,2.3462]
[1727960903165,12.2704205,2352.9,2352.8,2.3462]
[1727960903514,12.8204205,2352.9,2352.8,2.3462]
[1727960903720,13.73103302,2352.9,2352.8,2.3462]
[1727960908180,33.29103302,2352.9,2352.8,2.3462]
[1727960909396,4.25224,2351.7,2351.6,0.1159587]
[1727960909551,12.2725905,2351.7,2351.6,0.1159587]
[1727960909751,13.32462555,2351.7,2351.6,0.1159587]
[1727960912102,32.88462555,2351.7,2351.6,0.1159587]
[1727960913816,33.24573343,2351.7,2351.6,0.1159587]
[1727960914612,33.7466495,2351.7,2351.6,0.1159587]
[1727960914786,33.24573343,2351.7,2351.6,0.1159587]
[1727960915610,33.7466495,2351.7,2351.6,0.1159587]
[1727960915912,33.7466495,2351.7,2349.8,4.25554]
[1727960915913,8.5094,2350.4,2349.8,4.25554]
[1727960916117,0.008,2350.0,2349.9,4.25538]
[1727960916267,0.008,2350.0,2349.9,0.04134747]
[1727960916713,0.008,2350.0,2349.8,4.25566]
[1727960916880,0.008,2350.0,2349.9,0.04134747]
[1727960917686,0.008,2350.0,2349.6,4.25602]
[1727960917999,0.008,2350.0,2349.6,5.107231]
[1727960918188,0.008,2350.0,2349.7,0.04109539]
[1727960918914,4.2555,2349.9,2349.7,0.04109539]
[1727960919105,4.26368,2349.8,2349.7,0.04109539]
[1727960919291,4.25628,2349.5,2349.2,0.1159587]
[1727960919491,0.008,2349.3,2349.2,0.1159587]
[1727960919696,0.008,2349.5,2349.4,4.2564]
[1727960919903,0.008,2349.7,2349.6,4.25604]
[1727960920114,0.008,2349.7,2349.5,4.25618]
[1727960920416,0.008,2349.7,2349.6,4.25604]
[1727960920619,0.008,2349.7,2349.5,4.25607]
[1727960920802,0.008,2349.7,2349.4,5.54494687]
[1727960920978,0.008,2349.7,2349.5,4.2562]
[1727960921182,0.008,2349.7,2349.2,4.3725687]
[1727960921491,0.008,2349.7,2349.3,0.08513083]
[1727960921811,0.008,2349.7,2349.4,4.25628]
[1727960922014,0.008,2349.7,2349.3,8.51304]
[1727960922181,0.008,2349.7,2349.3,4.80836948]
[1727960922384,4.26399,2349.7,2349.2,0.1159587]
[1727960922580,0.008,2349.3,2349.2,4.3725687]
[1727960922894,0.008,2349.3,2349.2,0.1159587]
[1727960923097,0.008,2349.3,2349.2,4.3727187]
[1727960923289,0.008,2349.3,2349.2,0.1159587]
[1727960923495,0.434441,2349.3,2349.2,0.1159587]
[1727960924038,0.008,2349.3,2349.2,0.1159587]
[1727960925426,4.26458,2349.3,2349.2,0.1159587]
[1727960925985,0.008,2349.3,2349.2,0.1159587]
[1727960926187,4.26458,2349.3,2349.2,0.1159587]
[1727960927907,0.008,2349.3,2349.2,0.1159587]
[1727960928138,0.008,2349.3,2349.2,4.3727187]
[1727960928436,0.008,2349.5,2349.2,0.55323057]
[1727960928583,0.008,2349.5,2349.4,4.2564]
[1727960928784,0.008,2349.5,2349.2,0.1159587]
[1727960929026,0.008,2349.5,2349.2,4.3727187]
[1727960929183,0.008,2349.5,2349.2,0.1159587]
[1727960929383,0.008,2349.5,2349.2,4.3726087]
[1727960929881,0.008,2349.5,2349.3,4.25657]
[1727960930329,0.008,2349.5,2349.4,4.2564]
[1727960930825,0.008,2349.7,2349.6,4.25604]
[1727960931338,0.008,2350.4,2350.3,4.25477]
[1727960931554,0.008,2350.7,2350.2,4.25493]
[1727960931824,0.008,2350.7,2350.5,4.2544]
[1727960932224,0.008,2350.7,2350.2,0.85102]
[1727960932428,0.008,2350.7,2350.5,4.2544]
[1727960932726,0.008,2350.7,2350.5,4.25428]
[1727960932953,11.64271,2351.5,2350.5,4.25428]
[1727960932954,0.008,2350.9,2350.5,4.25428]
[1727960933120,0.008,2350.6,2350.5,4.25428]
[1727960933318,0.008,2350.6,2350.3,4.25466]
[1727960933703,0.008,2350.7,2350.4,4.2545]
[1727960933905,0.008,2350.7,2350.3,4.25466]
[1727960934129,0.008,2350.7,2350.5,4.25432]
[1727960934630,0.008,2350.7,2350.4,4.2545]
[1727960935031,0.008,2350.7,2350.6,4.25423]
[1727960935601,0.008,2350.7,2350.5,4.25435]
[1727960935807,0.008,2350.7,2350.6,4.25423]
[1727960936304,0.008,2350.7,2350.5,4.25437]
[1727960937054,0.008,2350.7,2350.3,4.25464]
[1727960937221,0.008,2350.7,2350.5,4.25439]
[1727960937405,0.008,2350.7,2350.5,8.50878]
[1727960937747,4.26213,2350.7,2350.3,4.25473]
[1727960937980,4.95878,2351.1,2350.3,4.25467]
[1727960937981,0.008,2350.4,2350.3,4.25467]
[1727960938273,0.008,2350.6,2350.5,4.25441]
[1727960938422,0.008,2350.7,2350.6,4.25423]
[1727960938624,0.008,2350.7,2350.5,4.25441]
[1727960939267,0.008,2350.7,2350.6,4.25423]
[1727960939630,0.008,2350.9,2350.6,4.25423]
[1727960939876,0.008,2350.9,2350.7,4.25404]
[1727960940088,0.008,2350.9,2350.8,4.25387]
[1727960940243,0.008,2351.4,2351.1,4.25332]
[1727960940572,4.25248,2351.6,2351.5,4.2526]
[1727960940573,0.008,2351.6,2351.5,4.2526]
[1727960940791,0.008,2351.8,2351.7,4.25224]
[1727960941427,4.25225,2351.7,2351.0,9.26729473]
[1727960941690,5.392005,2351.6,2351.1,4.25331]
[1727960941972,0.008,2351.2,2351.0,4.25338]
[1727960942182,0.008,2351.2,2350.9,4.25367]
[1727960942376,0.008,2351.2,2350.9,4.25359]
[1727960942592,0.008,2351.0,2350.9,4.25359]
[1727960942730,0.008,2351.2,2351.0,4.25346]
[1727960942927,0.008,2351.2,2351.1,4.25332]
[1727960943134,0.008,2351.3,2351.2,4.25314]
[1727960943378,0.008,2351.6,2351.2,6.475386]
[1727960943533,0.008,2351.8,2351.7,4.25224]
[1727960943885,0.008,2352.3,2352.0,5.0733]
[1727960944031,0.008,2352.3,2351.8,4.2519]
[1727960944032,0.008,2352.3,2351.8,4.25203]
[1727960944238,0.008,2352.1,2351.9,4.25172]
[1727960945354,0.008,2352.3,2352.2,4.25133]
[1727960945557,4.9555,2352.9,2352.1,8.50291]
[1727960945558,4.25869,2352.6,2352.1,8.50291]
[1727960945847,0.7054,2352.9,2351.5,0.8216]
[1727960945848,0.008,2352.3,2351.5,0.8216]
[1727960946035,0.008,2351.8,2351.7,4.25223]
[1727960946346,0.008,2352.1,2351.7,4.25223]
[1727960946551,0.929598,2352.1,2351.1,0.7786]
[1727960946760,0.929598,2352.1,2351.4,4.25269]
[1727960946761,0.008,2351.6,2351.4,4.25269]
[1727960947091,0.008,2351.6,2351.5,4.2526]
[1727960947588,0.008,2351.9,2351.1,0.7786]
[1727960947766,0.008,2351.9,2351.5,4.25243]
[1727960947991,0.008,2351.6,2351.4,4.25274]
[1727960948392,0.008,2351.6,2351.4,4.25267]
[1727960948699,0.008,2351.8,2351.7,4.25224]
[1727960948909,0.008,2352.1,2351.8,4.252]
[1727960949271,0.008,2352.1,2351.8,4.25197]
[1727960949590,0.7134,2352.3,2351.4,3.0]
[1727960949758,0.008,2351.9,2351.8,4.25196]
[1727960950875,0.008,2352.1,2351.9,4.25182]
[1727960951082,0.008,2352.1,2351.6,4.25227]
[1727960951270,0.008,2351.8,2351.7,4.25224]
[1727960951608,0.008,2352.1,2351.7,4.25224]
[1727960951826,0.008,2351.8,2351.7,4.25224]
[1727960952235,0.008,2351.8,2351.3,4.25286]
[1727960952382,4.25207,2351.8,2351.1,0.7786]
[1727960952726,4.25242,2351.6,2351.2,4.25312]
[1727960953036,4.25242,2351.6,2351.1,4.25321]
[1727960953037,0.008,2351.3,2351.1,4.25321]
[1727960953521,0.008,2351.3,2351.2,4.25314]
[1727960954538,0.008,2351.8,2351.6,4.25228]
[1727960954882,0.008,2351.8,2351.5,4.25256]
[1727960955087,0.008,2351.6,2351.3,4.25285]
[1727960955313,0.008,2351.4,2351.1,8.50645]
[1727960955564,0.008,2351.2,2350.9,8.50716]
[1727960955845,4.25297,2351.3,2350.9,4.25356]
[1727960955846,0.008,2351.0,2350.9,4.25356]
[1727960956046,0.008,2351.0,2350.8,4.25378]
[1727960956201,0.008,2351.0,2350.9,4.25369]
[1727960956401,4.2615,2351.0,2350.6,4.25413]
[1727960956606,0.008,2350.7,2350.6,4.25413]
[1727960956833,0.008,2350.8,2350.6,4.25413]
[1727960959505,0.008,2350.8,2350.7,4.2539]
[1727960959803,0.008,2350.8,2350.7,4.25405]
[1727960961306,0.008,2351.1,2350.8,4.25376]
[1727960961550,0.008,2351.1,2351.0,4.2535]
[1727960962764,0.008,2351.2,2350.9,4.25354]
[1727960963065,0.008,2351.0,2350.9,4.25354]
[1727960963707,0.008,2351.2,2350.9,4.25354]
[1727960963953,0.008,2351.2,2351.0,4.25338]
[1727960964456,0.008,2351.2,2351.1,4.25332]
[1727960964832,0.008,2351.2,2351.1,0.8205]
[1727960965162,0.7054,2352.2,2351.7,0.7694]
[1727960965163,0.7134,2352.2,2351.7,0.7694]
[1727960965315,0.7134,2352.2,2351.3,4.25284]
[1727960965316,0.008,2351.9,2351.2,7.25313]
[1727960965663,0.008,2351.6,2351.5,4.25257]
[1727960966049,0.008,2351.9,2351.2,3.0]
[1727960966228,0.008,2351.6,2351.5,4.2525]
[1727960967356,0.008,2351.6,2351.4,4.25269]
[1727960967596,0.008,2351.6,2351.5,4.2526]